fUSD/lending_fUSD_20240804
["ID","MTS","AMOUNT","RATE_DAILY","PERIOD"]
[334129978,1722789116845,-500.0,0.00023342,9]
[334129979,1722789116854,-664.1,0.00023342,9]
[334129980,1722789116872,-952.32,0.00023342,9]
[334129981,1722789116885,-500.0,0.00023342,9]
[334129982,1722789116894,-1168.02,0.00023342,9]
[334129983,1722789116904,-1420.45,0.00023342,9]
[334129984,1722789116913,-500.0,0.00023342,9]
[334129985,1722789116922,-735.18,0.00023342,9]
[334129986,1722789116931,-500.0,0.00023342,9]
[334129987,1722789116940,-500.0,0.00023342,9]
[334129988,1722789116949,-500.0,0.00023342,9]
[334129989,1722789116958,-500.0,0.00023342,9]
[334129990,1722789116967,-500.0,0.00023415,7]
[334129991,1722789116976,-500.0,0.00023415,7]
[334129992,1722789116985,-500.0,0.00023415,7]
[334129993,1722789116995,-956.89,0.00023423,9]
[334129994,1722789117003,-956.89,0.00023423,9]
[334129995,1722789117012,-1120.04,0.00023423,9]
[334129996,1722789117021,-1120.04,0.00023423,9]
[334129997,1722789117030,-1120.04,0.00023423,9]
[334129998,1722789117039,-1120.04,0.00023423,9]
[334129999,1722789117048,-1120.04,0.00023423,9]
[334130000,1722789117058,-1120.11598544,0.00023423,9]
[334130001,1722789117067,-500.0,0.00023423,9]
[334130002,1722789117077,-500.0,0.00023423,9]
[334130003,1722789117086,-500.0,0.00023423,9]
[334130004,1722789117095,-500.0,0.00023423,9]
[334130005,1722789117104,-514.756804,0.00023423,9]
[334130006,1722789117114,-1778.849832,0.00023423,7]
[334130007,1722789117123,-1778.849832,0.00023423,7]
[334130008,1722789117133,-253.193013,0.00023423,7]
[334130009,1722789117143,-253.193013,0.00023423,7]
[334130010,1722789117152,-151.0,0.00023423,7]
[334130011,1722789117162,-1743.43338337,0.00023424,2]
[334130012,1722789117172,-2337.51,0.00023424,2]
[334130013,1722789117183,-500.0,0.00023424,9]
[334130014,1722789117194,-500.0,0.00023424,9]
[334130015,1722789117203,-379.46767723,0.00023424,9]
[334130016,1722789117213,-500.0,0.00023424,9]
[334130017,1722789117223,-500.0,0.00023424,9]
[334130018,1722789117232,-500.0,0.00023424,9]
[334130019,1722789117242,-500.0,0.00023424,9]
[334130020,1722789117253,-500.0,0.00023424,9]
[334130021,1722789117262,-289.31941757,0.00023424,9]
[334130022,1722789117271,-500.0,0.00023424,9]
[334130023,1722789117282,-500.0,0.00023424,9]
[334130024,1722789117291,-500.0,0.00023424,9]
[334130025,1722789117301,-222.33,0.00023424,9]
[334130026,1722789117311,-500.0,0.00023424,9]
[334130027,1722789117321,-500.0,0.00023424,9]
[334130028,1722789117330,-500.0,0.00023424,9]
[334130029,1722789117340,-500.0,0.00023424,9]
[334130030,1722789117349,-227.82,0.00023424,9]
[334130031,1722789117360,-298.75,0.00023424,9]
[334130032,1722789117373,-500.0,0.00023424,9]
[334130033,1722789117384,-219.94,0.00023424,9]
[334130034,1722789117400,-500.0,0.00023424,9]
[334130035,1722789117409,-500.0,0.00023424,9]
[334130036,1722789117418,-500.0,0.00023424,9]
[334130037,1722789117427,-409.17725627,0.00023424,9]
[334130038,1722789117437,-245.26696669,0.00023424,9]
[334130039,1722789117447,-364.38707887,0.00023424,9]
[334130040,1722789117456,-517.39,0.00023424,9]
[334130041,1722789117466,-500.0,0.00023424,9]
[334130042,1722789117476,-500.0,0.00023424,9]
[334130043,1722789117485,-500.0,0.00023424,9]
[334130044,1722789117495,-500.0,0.00023424,9]
[334130045,1722789117505,-500.0,0.00023424,9]
[334130046,1722789117515,-500.0,0.00023424,9]
[334130047,1722789117524,-502.62,0.00023424,9]
[334130048,1722789117534,-500.0,0.00023424,9]
[334130049,1722789117543,-500.0,0.00023424,9]
[334130050,1722789117552,-253.42,0.00023424,9]
[334130051,1722789117562,-500.0,0.00023424,9]
[334130052,1722789117571,-500.0,0.00023424,9]
[334130053,1722789117581,-730.08,0.00023424,9]
[334130054,1722789117590,-500.0,0.00023424,9]
[334130055,1722789117600,-500.0,0.00023424,9]
[334130056,1722789117614,-500.0,0.00023424,9]
[334130057,1722789117628,-500.0,0.00023424,9]
[334130058,1722789117637,-500.0,0.00023424,9]
[334130059,1722789117646,-588.86,0.00023424,9]
[334130060,1722789117657,-500.0,0.00023424,9]
[334130061,1722789117667,-500.0,0.00023424,9]
[334130062,1722789117676,-500.0,0.00023424,9]
[334130063,1722789117685,-500.0,0.00023424,9]
[334130064,1722789117694,-850.72,0.00023424,9]
[334130065,1722789117704,-500.0,0.00023424,9]
[334130066,1722789117714,-760.21,0.00023424,9]
[334130067,1722789117723,-626.04,0.00023424,9]
[334130068,1722789117732,-500.0,0.00023424,9]
[334130069,1722789117742,-500.0,0.00023424,9]
[334130070,1722789117752,-500.0,0.00023424,9]
[334130071,1722789117761,-500.0,0.00023424,9]
[334130072,1722789117771,-500.0,0.00023424,9]
[334130073,1722789117780,-500.0,0.00023424,9]
[334130074,1722789117790,-500.0,0.00023424,9]
[334130075,1722789117799,-561.46,0.00023424,9]
[334130076,1722789117809,-500.0,0.00023424,9]
[334130077,1722789117818,-500.0,0.00023424,9]
[334130078,1722789117828,-500.0,0.00023424,9]
[334130079,1722789117838,-359.6,0.00023424,9]
[334130080,1722789117848,-500.0,0.00023424,9]
[334130081,1722789117857,-500.0,0.00023424,9]
[334130082,1722789117879,-500.0,0.00023424,9]
[334130083,1722789117888,-550.62,0.00023424,9]
[334130084,1722789117897,-500.0,0.00023424,9]
[334130085,1722789117907,-500.0,0.00023424,9]
[334130086,1722789117916,-500.0,0.00023424,9]
[334130087,1722789117925,-500.0,0.00023424,9]
[334130088,1722789117934,-500.0,0.00023424,9]
[334130089,1722789117944,-500.0,0.00023424,9]
[334130090,1722789117953,-500.0,0.00023424,9]
[334130091,1722789117963,-500.0,0.00023424,9]
[334130092,1722789117973,-500.0,0.00023424,9]
[334130093,1722789117982,-500.0,0.00023424,9]
[334130094,1722789117991,-500.0,0.00023424,9]
[334130095,1722789118001,-500.0,0.00023424,9]
[334130096,1722789118011,-526.65042796,0.00023424,9]
[334130097,1722789118020,-500.0,0.00023424,9]
[334130098,1722789118030,-591.33,0.00023424,9]
[334130099,1722789118039,-1011.69,0.00023424,9]
[334130100,1722789118049,-500.0,0.00023424,9]
[334130101,1722789118059,-511.64,0.00023424,9]
[334130102,1722789118068,-500.0,0.00023424,9]
[334130103,1722789118078,-500.0,0.00023424,9]
[334130104,1722789118087,-500.0,0.00023424,9]
[334130105,1722789118096,-559.06,0.00023424,9]
[334130106,1722789118105,-702.5,0.00023424,9]
[334130107,1722789118127,-500.0,0.00023424,9]
[334130108,1722789118137,-500.0,0.00023424,9]
[334130109,1722789118146,-500.0,0.00023424,9]
[334130110,1722789118155,-500.0,0.00023424,9]
[334130111,1722789118166,-550.58,0.00023424,9]
[334130112,1722789118176,-646.51,0.00023424,9]
[334130113,1722789118187,-500.0,0.00023424,9]
[334130114,1722789118196,-1314.76,0.00023424,9]
[334130115,1722789118206,-500.0,0.00023424,9]
[334130116,1722789118215,-500.0,0.00023424,9]
[334130117,1722789118225,-500.0,0.00023424,9]
[334130118,1722789118234,-500.0,0.00023424,9]
[334130119,1722789118247,-500.0,0.00023424,9]
[334130120,1722789118259,-532.71,0.00023424,9]
[334130121,1722789118269,-500.0,0.00023424,9]
[334130122,1722789118279,-721.27,0.00023424,9]
[334130123,1722789118288,-504.56983707,0.00023424,9]
[334130124,1722789118297,-500.0,0.00023424,9]
[334130125,1722789118307,-500.0,0.00023424,9]
[334130126,1722789118316,-500.0,0.00023424,9]
[334130127,1722789118326,-500.0,0.00023424,9]
[334130128,1722789118335,-500.0,0.00023424,9]
[334130129,1722789118345,-500.0,0.00023424,9]
[334130130,1722789118355,-500.0,0.00023424,9]
[334130131,1722789118375,-540.98,0.00023424,9]
[334130132,1722789118385,-500.0,0.00023424,9]
[334130133,1722789118395,-500.93822598,0.00023424,9]
[334130134,1722789118404,-500.0,0.00023424,9]
[334130135,1722789118414,-500.0,0.00023424,9]
[334130136,1722789118424,-500.0,0.00023424,9]
[334130137,1722789118433,-521.65,0.00023424,9]
[334130138,1722789118444,-785.3,0.00023424,9]
[334130139,1722789118454,-831.69,0.00023424,9]
[334130140,1722789118464,-500.0,0.00023424,9]
[334130141,1722789118475,-780.18,0.00023424,9]
[334130142,1722789118485,-500.0,0.00023424,9]
[334130143,1722789118495,-500.0,0.00023424,9]
[334130144,1722789118506,-260.02,0.00023424,9]
[334130145,1722789118516,-500.0,0.00023424,9]
[334130146,1722789118526,-500.0,0.00023424,9]
[334130147,1722789118536,-500.0,0.00023424,9]
[334130148,1722789118545,-500.0,0.00023424,9]
[334130149,1722789118555,-500.0,0.00023424,9]
[334130150,1722789118564,-500.0,0.00023424,9]
[334130151,1722789118573,-559.95,0.00023424,9]
[334130152,1722789118582,-500.0,0.00023424,9]
[334130153,1722789118592,-1164.15,0.00023424,9]
[334130154,1722789118601,-454.82993457,0.00023424,9]
[334130155,1722789118618,-995.62,0.00023424,9]
[334130156,1722789118628,-500.0,0.00023424,9]
[334130157,1722789118637,-500.0,0.00023424,9]
[334130158,1722789118646,-500.0,0.00023424,9]
[334130159,1722789118656,-522.29,0.00023424,9]
[334130160,1722789118666,-576.22,0.00023424,9]
[334130161,1722789118675,-500.0,0.00023424,9]
[334130162,1722789118685,-501.63936129,0.00023424,9]
[334130163,1722789118694,-543.19,0.00023424,9]
[334130164,1722789118703,-500.0,0.00023424,9]
[334130165,1722789118713,-501.67021338,0.00023424,9]
[334130166,1722789118722,-500.0,0.00023424,9]
[334130167,1722789118732,-500.0,0.00023424,9]
[334130168,1722789118741,-500.0,0.00023424,9]
[334130169,1722789118751,-500.0,0.00023424,9]
[334130170,1722789118759,-500.0,0.00023424,9]
[334130171,1722789118769,-500.0,0.00023424,9]
[334130172,1722789118778,-500.0,0.00023424,9]
[334130173,1722789118788,-501.37548049,0.00023424,9]
[334130174,1722789118797,-500.0,0.00023424,9]
[334130175,1722789118807,-599.57,0.00023424,2]
[334130176,1722789118817,-500.0,0.00023424,9]
[334130177,1722789118827,-500.0,0.00023424,9]
[334130178,1722789118836,-500.0,0.00023424,9]
[334130179,1722789118846,-500.0,0.00023424,9]
[334130180,1722789118857,-500.0,0.00023424,9]
[334130181,1722789118874,-500.0,0.00023424,9]
[334130182,1722789118884,-500.0,0.00023424,9]
[334130183,1722789118894,-500.0,0.00023424,9]
[334130184,1722789118904,-550.63,0.00023424,7]
[334130185,1722789118913,-500.0,0.00023424,9]
[334130186,1722789118923,-603.97,0.00023424,9]
[334130187,1722789118932,-500.0,0.00023424,9]
[334130188,1722789118942,-500.0,0.00023424,9]
[334130189,1722789118951,-579.69,0.00023424,9]
[334130190,1722789118960,-526.37,0.00023424,9]
[334130191,1722789118969,-519.43,0.00023424,9]
[334130192,1722789118979,-500.0,0.00023424,9]
[334130193,1722789118989,-500.0,0.00023424,9]
[334130194,1722789118999,-500.0,0.00023424,9]
[334130195,1722789119012,-201.01579551,0.00023424,9]
[334130196,1722789119022,-500.0,0.00023424,9]
[334130197,1722789119032,-593.32,0.00023424,9]
[334130198,1722789119041,-500.0,0.00023424,9]
[334130199,1722789119051,-500.0,0.00023424,9]
[334130200,1722789119061,-500.0,0.00023424,9]
[334130201,1722789119070,-500.0,0.00023424,9]
[334130202,1722789119080,-500.0,0.00023424,9]
[334130203,1722789119090,-351.02403887,0.00023424,9]
[334130204,1722789119100,-513.52,0.00023424,9]
[334130205,1722789119113,-500.0,0.00023424,9]
[334130206,1722789119125,-354.93,0.00023424,9]
[334130207,1722789119135,-500.0,0.00023424,9]
[334130208,1722789119144,-500.0,0.00023424,9]
[334130209,1722789119154,-500.0,0.00023424,9]
[334130210,1722789119164,-500.0,0.00023424,9]
[334130211,1722789119174,-545.7,0.00023424,9]
[334130212,1722789119187,-500.0,0.00023424,9]
[334130213,1722789119197,-500.0,0.00023424,9]
[334130214,1722789119206,-500.0,0.00023424,9]
[334130215,1722789119216,-500.0,0.00023424,9]
[334130216,1722789119226,-500.0,0.00023424,9]
[334130217,1722789119235,-500.0,0.00023424,9]
[334130218,1722789119246,-500.0,0.00023424,9]
[334130219,1722789119256,-500.0,0.00023424,9]
[334130220,1722789119265,-500.0,0.00023424,9]
[334130221,1722789119275,-500.0,0.00023424,9]
[334130222,1722789119285,-500.0,0.00023424,9]
[334130223,1722789119295,-500.0,0.00023424,9]
[334130224,1722789119305,-500.0,0.00023424,9]
[334130225,1722789119314,-500.0,0.00023424,9]
[334130226,1722789119324,-572.51,0.00023424,9]
[334130227,1722789119334,-500.0,0.00023424,9]
[334130228,1722789119343,-500.0,0.00023424,9]
[334130229,1722789119353,-500.0,0.00023424,9]
[334130230,1722789119371,-500.0,0.00023424,9]
[334130231,1722789119381,-500.0,0.00023424,9]
[334130232,1722789119390,-500.0,0.00023424,9]
[334130233,1722789119400,-500.0,0.00023424,9]
[334130234,1722789119410,-500.0,0.00023424,9]
[334130235,1722789119420,-500.0,0.00023424,9]
[334130236,1722789119430,-500.0,0.00023424,9]
[334130237,1722789119441,-500.0,0.00023424,9]
[334130238,1722789119451,-589.88,0.00023424,9]
[334130239,1722789119461,-500.0,0.00023424,9]
[334130240,1722789119471,-500.0,0.00023424,9]
[334130241,1722789119481,-500.0,0.00023424,9]
[334130242,1722789119491,-500.0,0.00023424,9]
[334130243,1722789119501,-500.0,0.00023424,9]
[334130244,1722789119511,-500.0,0.00023424,9]
[334130245,1722789119521,-165.86,0.00023424,9]
[334130246,1722789119531,-643.51,0.00023424,9]
[334130247,1722789119542,-500.0,0.00023424,9]
[334130248,1722789119552,-500.0,0.00023424,9]
[334130249,1722789119561,-531.27,0.00023424,9]
[334130250,1722789119572,-672.45,0.00023424,9]
[334130251,1722789119582,-500.0,0.00023424,9]
[334130252,1722789119591,-500.0,0.00023424,9]
[334130253,1722789119602,-500.0,0.00023424,9]
[334130254,1722789119618,-500.0,0.00023424,9]
[334130255,1722789119629,-500.0,0.00023424,9]
[334130256,1722789119639,-500.0,0.00023424,9]
[334130257,1722789119650,-448.4961154,0.00023424,9]
[334130258,1722789119659,-500.0,0.00023424,9]
[334130259,1722789119669,-500.0,0.00023424,9]
[334130260,1722789119679,-500.0,0.00023424,9]
[334130261,1722789119690,-500.0,0.00023424,9]
[334130262,1722789119699,-500.0,0.00023424,9]
[334130263,1722789119709,-500.0,0.00023424,9]
[334130264,1722789119719,-500.0,0.00023424,9]
[334130265,1722789119729,-500.0,0.00023424,9]
[334130266,1722789119739,-500.0,0.00023424,9]
[334130267,1722789119749,-500.0,0.00023424,9]
[334130268,1722789119758,-500.0,0.00023424,9]
[334130269,1722789119768,-500.0,0.00023424,9]
[334130270,1722789119779,-500.0,0.00023424,9]
[334130271,1722789119790,-558.03,0.00023424,9]
[334130272,1722789119799,-500.0,0.00023424,9]
[334130273,1722789119810,-500.0,0.00023424,9]
[334130274,1722789119820,-864.98,0.00023424,9]
[334130275,1722789119830,-510.16,0.00023424,9]
[334130276,1722789119840,-522.61,0.00023424,9]
[334130277,1722789119850,-1944.23,0.00023424,9]
[334130278,1722789119864,-500.0,0.00023424,9]
[334130279,1722789119876,-500.0,0.00023424,9]
[334130280,1722789119887,-500.0,0.00023424,9]
[334130281,1722789119897,-618.57,0.00023424,9]
[334130282,1722789119907,-500.0,0.00023424,9]
[334130283,1722789119917,-524.30705885,0.00023424,9]
[334130284,1722789119927,-500.0,0.00023424,9]
[334130285,1722789119937,-593.61,0.00023424,9]
[334130286,1722789119948,-500.0,0.00023424,9]
[334130287,1722789119957,-368.28211885,0.00023424,9]
[334130288,1722789119967,-500.0,0.00023424,9]
[334130289,1722789119978,-420.25264705,0.00023424,9]
[334130290,1722789119988,-500.0,0.00023424,9]
[334130291,1722789119998,-500.0,0.00023424,9]
[334130292,1722789120009,-500.0,0.00023424,9]
[334130293,1722789120019,-500.0,0.00023424,9]
[334130294,1722789120030,-500.0,0.00023424,9]
[334130295,1722789120040,-500.0,0.00023424,9]
[334130296,1722789120049,-500.0,0.00023424,9]
[334130297,1722789120059,-500.0,0.00023424,9]
[334130298,1722789120069,-500.0,0.00023424,9]
[334130299,1722789120079,-500.0,0.00023424,9]
[334130300,1722789120089,-500.0,0.00023424,9]
[334130301,1722789120099,-546.11,0.00023424,9]
[334130302,1722789120110,-500.0,0.00023424,9]
[334130303,1722789120124,-500.0,0.00023424,9]
[334130304,1722789120134,-500.0,0.00023424,9]
[334130305,1722789120144,-500.0,0.00023424,9]
[334130306,1722789120154,-226.94,0.00023424,9]
[334130307,1722789120164,-544.54,0.00023424,9]
[334130308,1722789120178,-500.0,0.00023424,9]
[334130309,1722789120188,-500.0,0.00023424,9]
[334130310,1722789120198,-347.4,0.00023424,9]
[334130311,1722789120209,-500.0,0.00023424,9]
[334130312,1722789120220,-500.0,0.00023424,9]
[334130313,1722789120231,-500.0,0.00023424,9]
[334130314,1722789120242,-500.0,0.00023424,9]
[334130315,1722789120254,-500.0,0.00023424,9]
[334130316,1722789120265,-500.0,0.00023424,9]
[334130317,1722789120275,-500.0,0.00023424,9]
[334130318,1722789120286,-638.8,0.00023424,9]
[334130319,1722789120296,-500.0,0.00023424,9]
[334130320,1722789120306,-422.51,0.00023424,9]
[334130321,1722789120316,-606.8,0.00023424,9]
[334130322,1722789120326,-500.0,0.00023424,9]
[334130323,1722789120337,-500.0,0.00023424,9]
[334130324,1722789120347,-593.44,0.00023424,9]
[334130325,1722789120358,-500.0,0.00023424,9]
[334130326,1722789120375,-500.0,0.00023424,9]
[334130327,1722789120386,-500.0,0.00023424,9]
[334130328,1722789120399,-500.0,0.00023424,9]
[334130329,1722789120410,-500.0,0.00023424,9]
[334130330,1722789120420,-607.33,0.00023424,9]
[334130331,1722789120431,-570.34,0.00023424,9]
[334130332,1722789120441,-500.0,0.00023424,9]
[334130333,1722789120451,-500.0,0.00023424,9]
[334130334,1722789120461,-500.0,0.00023424,9]
[334130335,1722789120471,-500.0,0.00023424,9]
[334130336,1722789120482,-500.0,0.00023424,9]
[334130337,1722789120491,-500.0,0.00023424,9]
[334130338,1722789120502,-500.0,0.00023424,9]
[334130339,1722789120511,-500.0,0.00023424,9]
[334130340,1722789120521,-500.0,0.00023424,9]
[334130341,1722789120532,-500.0,0.00023424,9]
[334130342,1722789120542,-500.0,0.00023424,9]
[334130343,1722789120553,-500.0,0.00023424,9]
[334130344,1722789120563,-500.0,0.00023424,9]
[334130345,1722789120573,-500.0,0.00023424,9]
[334130346,1722789120583,-500.0,0.00023424,9]
[334130347,1722789120594,-500.0,0.00023424,9]
[334130348,1722789120604,-300.89,0.00023424,9]
[334130349,1722789120622,-500.0,0.00023424,9]
[334130350,1722789120633,-528.21,0.00023424,9]
[334130351,1722789120643,-500.0,0.00023424,9]
[334130352,1722789120653,-500.0,0.00023424,9]
[334130353,1722789120915,-500.0,0.00023424,9]
[334130354,1722789120926,-500.0,0.00023424,9]
[334130355,1722789120935,-500.0,0.00023424,9]
[334130356,1722789120944,-569.32,0.00023424,9]
[334130357,1722789120953,-500.0,0.00023424,9]
[334130358,1722789120962,-500.0,0.00023424,9]
[334130359,1722789120972,-500.0,0.00023424,9]
[334130360,1722789120982,-523.37,0.00023424,9]
[334130361,1722789120992,-179.85,0.00023424,9]
[334130362,1722789121001,-500.0,0.00023424,9]
[334130363,1722789121011,-500.0,0.00023424,9]
[334130364,1722789121021,-500.0,0.00023424,9]
[334130365,1722789121030,-500.0,0.00023424,9]
[334130366,1722789121040,-500.0,0.00023424,9]
[334130367,1722789121049,-500.0,0.00023424,9]
[334130368,1722789121059,-500.0,0.00023424,9]
[334130369,1722789121069,-500.0,0.00023424,9]
[334130370,1722789121077,-6008.74,0.00023424,9]
[334130371,1722789121086,-500.0,0.00023424,9]
[334130372,1722789121096,-500.0,0.00023424,9]
[334130373,1722789121105,-500.0,0.00023424,9]
[334130374,1722789121121,-500.0,0.00023424,9]
[334130375,1722789121130,-500.0,0.00023424,9]
[334130376,1722789121140,-500.0,0.00023424,9]
[334130377,1722789121149,-500.0,0.00023424,9]
[334130378,1722789121159,-2039.61,0.00023424,9]
[334130379,1722789121168,-164.2653405,0.00023424,9]
[334130380,1722789121179,-500.0,0.00023424,9]
[334130381,1722789121189,-500.0,0.00023424,9]
[334130382,1722789121198,-3717.54,0.00023424,9]
[334130383,1722789121208,-500.0,0.00023424,9]
[334130384,1722789121220,-884.84,0.00023424,9]
[334130385,1722789121229,-500.0,0.00023424,9]
[334130386,1722789121239,-500.0,0.00023424,9]
[334130387,1722789121249,-500.0,0.00023424,9]
[334130388,1722789121260,-151.0,0.00023424,7]
[334130389,1722789121270,-151.0,0.00023424,7]
[334130390,1722789121280,-500.0,0.00023424,9]
[334130391,1722789121290,-580.87,0.00023424,9]
[334130392,1722789121300,-209.229212,0.00023424,7]
[334130393,1722789121310,-500.0,0.00023424,9]
[334130394,1722789121319,-1380.41,0.00023424,9]
[334130395,1722789121329,-3092.5,0.00023424,9]
[334130396,1722789121339,-1525.48,0.00023424,9]
[334130397,1722789121347,-500.0,0.00023424,9]
[334130398,1722789121356,-433.12,0.00023424,9]
[334130399,1722789121374,-500.0,0.00023424,9]
[334130400,1722789121384,-500.0,0.00023424,9]
[334130401,1722789121393,-735.29,0.00023424,9]
[334130402,1722789121403,-500.0,0.00023424,9]
[334130403,1722789121412,-502.77,0.00023424,9]
[334130404,1722789121422,-151.0,0.00023424,7]
[334130405,1722789121431,-501.41482773,0.00023424,9]
[334130406,1722789121441,-1651.73,0.00023424,9]
[334130407,1722789121450,-500.0,0.00023424,9]
[334130408,1722789121459,-1424.91,0.00023424,9]
[334130409,1722789121469,-511.18,0.00023424,9]
[334130410,1722789121479,-9291.65,0.00023424,9]
[334130411,1722789121489,-500.0,0.00023424,9]
[334130412,1722789121498,-500.0,0.00023424,9]
[334130413,1722789121509,-668.08,0.00023424,9]
[334130414,1722789121518,-1800.64,0.00023424,9]
[334130415,1722789121529,-1076.82,0.00023424,9]
[334130416,1722789121539,-1604.95,0.00023424,9]
[334130417,1722789121549,-696.11,0.00023424,9]
[334130418,1722789121559,-840.83,0.00023424,9]
[334130419,1722789121569,-734.28,0.00023424,9]
[334130420,1722789121579,-500.0,0.00023424,9]
[334130421,1722789121589,-500.0,0.00023424,9]
[334130422,1722789121598,-500.0,0.00023424,9]
[334130423,1722789121608,-593.79,0.00023424,9]
[334130424,1722789121624,-580.56,0.00023424,9]
[334130425,1722789121634,-500.0,0.00023424,9]
[334130426,1722789121642,-1654.23,0.00023424,9]
[334130427,1722789121652,-728.39,0.00023424,9]
[334130428,1722789121662,-932.72,0.00023424,9]
[334130429,1722789121672,-500.0,0.00023424,9]
[334130430,1722789121681,-500.0,0.00023424,9]
[334130431,1722789121691,-716.95,0.00023424,9]
[334130432,1722789121700,-652.16,0.00023424,9]
[334130433,1722789121710,-509.23,0.00023424,9]
[334130434,1722789121720,-500.0,0.00023424,9]
[334130435,1722789121729,-1421.84,0.00023424,9]
[334130436,1722789121740,-500.0,0.00023424,9]
[334130437,1722789121749,-1831.37,0.00023424,9]
[334130438,1722789121759,-9159.33,0.00023424,9]
[334130439,1722789121769,-500.0,0.00023424,9]
[334130440,1722789121779,-513.81,0.00023424,9]
[334130441,1722789121789,-24340.79,0.00023424,9]
[334130442,1722789121799,-500.0,0.00023424,9]
[334130443,1722789121809,-500.0,0.00023424,9]
[334130444,1722789121818,-469.8443713,0.00023424,9]
[334130445,1722789121827,-500.0,0.00023424,9]
[334130446,1722789121838,-500.0,0.00023424,9]
[334130447,1722789121848,-500.0,0.00023424,9]
[334130448,1722789121858,-500.0,0.00023424,9]
[334130449,1722789121876,-696.26,0.00023424,9]
[334130450,1722789121886,-500.0,0.00023424,9]
[334130451,1722789121895,-2392.07,0.00023424,9]
[334130452,1722789121905,-6117.15,0.00023424,9]
[334130453,1722789121915,-419.65,0.00023424,9]
[334130454,1722789121925,-588.58,0.00023424,9]
[334130455,1722789121935,-500.0,0.00023424,9]
[334130456,1722789121945,-1134.1,0.00023424,9]
[334130457,1722789121955,-2627.33,0.00023424,9]
[334130458,1722789121965,-871.99,0.00023424,9]
[334130459,1722789121975,-771.73,0.00023424,9]
[334130460,1722789121985,-500.0,0.00023424,9]
[334130461,1722789121994,-544.49,0.00023424,9]
[334130462,1722789122004,-6002.83,0.00023424,9]
[334130463,1722789122014,-500.0,0.00023424,9]
[334130464,1722789122023,-791.38,0.00023424,9]
[334130465,1722789122033,-500.0,0.00023424,9]
[334130466,1722789122044,-11888.09,0.00023424,9]
[334130467,1722789122054,-500.0,0.00023424,9]
[334130468,1722789122064,-500.0,0.00023424,9]
[334130469,1722789122074,-500.0,0.00023424,9]
[334130470,1722789122084,-500.0,0.00023424,9]
[334130471,1722789122094,-944.27,0.00023424,9]
[334130472,1722789122103,-1585.57,0.00023424,9]
[334130473,1722789122120,-4038.41,0.00023424,9]
[334130474,1722789122129,-608.31,0.00023424,9]
[334130475,1722789122139,-1194.13,0.00023424,9]
[334130476,1722789122148,-1646.59,0.00023424,9]
[334130477,1722789122157,-949.11,0.00023424,9]